bitfinex-derivatives/quotes_BNBF0:USTF0_20250326
["timestamp","ask_amount","ask_price","bid_price","bid_amount"]
[1742960183135,0.276579,629.43,628.88,1.18608911]
[1742960183838,0.276579,629.43,628.73,1.18608911]
[1742960184037,0.942,629.42,628.73,1.18608911]
[1742960185334,0.456,629.41,628.73,1.18608911]
[1742960186240,0.456,629.41,628.74,1.18608911]
[1742960188839,0.456,629.41,628.57,1.18608911]
[1742960190042,0.27664496,629.4,628.57,1.18608911]
[1742960191748,0.456,629.41,628.42,1.18608911]
[1742960193043,0.27666146,629.4,628.42,1.46275057]
[1742960195452,0.27666146,629.4,628.42,0.27666146]
[1742960197853,0.456,629.41,628.37,1.18608911]
[1742960199157,0.27668016,629.4,628.37,1.18608911]
[1742960199651,0.27668016,629.4,628.38,0.27072216]
[1742960199852,0.27668016,629.4,628.37,1.18608911]
[1742960200052,0.27668016,629.4,628.38,0.2707245]
[1742960200656,0.27668016,629.4,628.36,1.46276927]
[1742960201758,0.27668016,629.4,628.36,0.27668016]
[1742960202349,0.5944431,629.4,628.36,0.27668016]
[1742960203756,0.31776294,629.4,628.35,1.18608911]
[1742960204159,0.27669556,629.39,628.35,1.18608911]
[1742960204460,0.27669556,629.39,628.31,0.27669556]
[1742960206059,0.27669556,629.39,628.32,0.27081823]
[1742960206759,0.31776294,629.4,628.32,0.27081823]
[1742960207061,0.31776294,629.4,628.33,0.27081823]
[1742960207258,0.31776294,629.4,628.3,0.27081823]
[1742960207455,0.31776294,629.4,628.31,0.27081823]
[1742960207653,0.31776294,629.4,628.33,1.18608911]
[1742960207854,0.31776294,629.4,628.34,0.27076507]
[1742960208159,0.27669666,629.39,628.33,1.18608911]
[1742960209762,0.31776294,629.4,628.33,1.18608911]
[1742960209961,0.939,629.38,628.23,1.18608911]
[1742960210161,0.939,629.38,628.25,0.27058675]
[1742960211163,0.27670986,629.37,628.26,0.27670986]
[1742960211363,0.27670986,629.37,628.27,0.27058675]
[1742960211562,0.27670986,629.37,628.26,0.27670986]
[1742960212864,0.939,629.38,628.16,1.18608911]
[1742960213264,0.456,629.37,628.16,1.18608911]
[1742960214064,0.27671866,629.36,628.25,0.27671866]
[1742960215769,0.456,629.37,628.16,1.18608911]
[1742960217170,0.27671866,629.36,628.25,0.27671866]
[1742960218875,0.456,629.37,628.1,1.18608911]
[1742960220173,0.27672526,629.36,628.25,0.27672526]
[1742960220380,0.31778819,629.35,628.25,0.27672526]
[1742960220974,0.31307095,629.35,628.25,0.27672526]
[1742960221674,0.31307095,629.35,628.12,1.18608911]
[1742960222980,0.27673736,629.34,628.12,1.18608911]
[1742960223182,0.27673736,629.34,628.25,0.27673736]
[1742960227989,0.31307095,629.35,628.24,0.31834967]
[1742960228487,0.31779324,629.34,628.24,0.31834967]
[1742960229088,0.27673296,629.33,628.25,0.27673296]
[1742960231197,0.31780334,629.32,628.25,0.27673296]
[1742960232194,0.31780334,629.32,628.26,0.27061138]
[1742960233496,0.31780334,629.32,628.35,1.18608911]
[1742960233693,0.31780334,629.32,628.36,0.27059837]
[1742960234098,0.27672966,629.31,628.36,0.27059837]
[1742960234399,0.31781344,629.3,628.36,0.27059837]
[1742960234700,0.31781344,629.3,628.35,1.18608911]
[1742960235599,0.31781344,629.3,628.39,1.18608911]
[1742960237101,0.27671866,629.29,628.39,1.18608911]
[1742960237500,0.27671866,629.29,628.36,1.18608911]
[1742960239603,0.633,629.28,628.36,1.18608911]
[1742960240799,0.633,629.28,628.37,1.18608911]
[1742960241204,0.27672526,629.27,628.37,1.18608911]
[1742960242907,0.633,629.28,628.39,1.18608911]
[1742960244209,0.73169776,629.27,628.39,1.18608911]
[1742960244408,0.73169776,629.27,628.4,0.27065332]
[1742960244908,0.73169776,629.27,628.44,1.18608911]
[1742960245109,0.73169776,629.27,628.45,0.27065332]
[1742960246008,0.455,629.27,628.45,0.27065332]
[1742960246211,0.27669336,629.26,628.45,0.27065332]
[1742960246409,0.27669336,629.26,628.44,1.18608911]
[1742960246609,0.27669336,629.26,628.45,0.27059992]
[1742960247410,0.27669336,629.26,628.54,1.18608911]
[1742960249714,0.27669336,629.26,628.57,1.18608911]
[1742960251812,0.455,629.27,628.57,1.18608911]
[1742960252007,0.27669006,629.25,628.57,1.18608911]
[1742960252412,0.27669006,629.25,628.5,1.18608911]
[1742960254916,0.455,629.27,628.5,1.18608911]
[1742960255315,0.455,629.27,628.46,1.18608911]
[1742960256113,0.27671426,629.26,628.46,1.18608911]
[1742960257315,0.27671426,629.26,628.44,1.18608911]
[1742960257716,0.455,629.27,628.44,1.18608911]
[1742960258117,0.27670326,629.26,628.44,1.18608911]
[1742960258511,0.27670326,629.26,628.45,0.27066445]
[1742960258915,0.27670326,629.26,628.46,0.27066031]
[1742960259112,0.27670326,629.26,628.45,0.27066031]
[1742960259317,0.27670326,629.26,628.44,1.18608911]
[1742960259517,0.27670326,629.26,628.45,0.27065665]
[1742960259717,0.27670326,629.26,628.48,1.18608911]
[1742960261720,0.455,629.25,628.48,1.18608911]
[1742960262127,0.455,629.25,628.56,1.18608911]
[1742960264223,0.455,629.25,628.26,2.16850137]
[1742960264224,0.455,629.25,628.55,1.18608911]
[1742960264426,0.639,629.24,628.55,1.18608911]
[1742960266228,0.639,629.24,628.56,1.18608911]
[1742960268029,0.27669446,629.23,628.56,1.18608911]
[1742960269830,0.639,629.24,628.56,1.18608911]
[1742960270035,0.639,629.24,628.58,1.18608911]
[1742960270334,0.27669446,629.23,628.58,1.18608911]
[1742960272844,0.639,629.24,628.62,1.18608911]
[1742960273140,0.27669226,629.22,628.62,1.18608911]
[1742960275944,0.639,629.24,628.62,1.18608911]
[1742960276142,0.27668786,629.21,628.65,1.18608911]
[1742960278846,0.639,629.24,628.65,1.18608911]
[1742960279047,0.27668456,629.2,628.65,1.18608911]
[1742960281748,0.27668456,629.2,628.28,0.98241226]
[1742960281749,0.27668456,629.2,628.69,1.18608911]
[1742960281950,0.639,629.24,628.69,1.18608911]
[1742960284649,0.639,629.24,628.72,1.18608911]
[1742960285548,0.73166256,629.25,628.72,1.18608911]
[1742960287754,0.73166256,629.25,628.52,1.18608911]
[1742960288952,0.584,629.24,628.51,1.18608911]
[1742960291453,0.584,629.24,628.43,1.18608911]
[1742960292250,0.27672856,629.23,628.43,1.18608911]
[1742960293755,0.455,629.22,628.37,1.18608911]
[1742960295258,0.27673516,629.21,628.37,1.18608911]
[1742960296657,0.27673516,629.21,628.34,1.18608911]
[1742960296854,0.455,629.22,628.34,1.18608911]
[1742960297158,0.27674066,629.2,628.34,1.18608911]
[1742960299554,0.27674066,629.2,628.31,1.18608911]
[1742960299757,0.455,629.22,628.31,1.18608911]
[1742960300860,0.455,629.22,628.32,0.27062866]
[1742960301155,0.27673076,629.21,628.31,1.18608911]
[1742960301358,0.27673076,629.21,628.32,0.27062857]
[1742960301954,0.27673076,629.21,628.41,1.18608911]
[1742960302754,0.455,629.22,628.41,1.18608911]
[1742960303156,0.27672196,629.2,628.41,1.18608911]
[1742960304058,0.27672196,629.2,628.25,1.18608911]
[1742960305360,0.27672196,629.2,628.26,0.27064893]
[1742960305661,1.01572196,629.2,628.26,0.27064893]
[1742960305859,0.739,629.2,628.26,0.27064893]
[1742960306160,0.27674176,629.19,628.26,0.27064893]
[1742960308264,0.27674176,629.19,628.48,1.18608911]
[1742960308861,0.739,629.2,628.48,1.18608911]
[1742960309060,0.27671646,629.18,628.48,1.18608911]
[1742960310968,0.455,629.17,628.48,1.18608911]
[1742960312168,0.455,629.17,628.25,0.98136998]
[1742960312169,0.455,629.17,628.5,1.18608911]
[1742960312668,0.27670986,629.16,628.5,1.18608911]
[1742960314871,0.455,629.17,628.32,1.18608911]
[1742960315371,0.27671096,629.16,628.32,1.18608911]
[1742960317472,0.27671096,629.16,628.33,1.18608911]
[1742960317869,0.455,629.17,628.33,1.18608911]
[1742960319271,0.27671536,629.16,628.33,1.18608911]
[1742960319665,0.27671536,629.16,628.34,1.18608911]
[1742960320970,0.455,629.17,628.34,1.18608911]
[1742960321475,0.455,629.17,628.35,1.18608911]
[1742960322275,0.27671316,629.16,628.35,1.18608911]
[1742960322568,0.864,629.15,628.36,0.27048687]
[1742960323376,0.864,629.15,628.49,1.18608911]
[1742960326281,0.864,629.15,628.45,1.18608911]
[1742960327876,0.864,629.15,628.44,1.18608911]
[1742960329983,0.864,629.15,628.46,1.18608911]
[1742960331883,0.864,629.15,628.48,1.18608911]
[1742960334785,0.864,629.15,628.54,1.18608911]
[1742960335586,0.27670436,629.22,628.54,1.18608911]
[1742960335787,0.455,629.14,628.54,1.18608911]
[1742960338686,0.679,629.13,628.54,1.18608911]
[1742960339791,0.679,629.13,628.56,1.18608911]
[1742960342099,0.95571536,629.13,628.56,1.18608911]
[1742960344002,0.95571536,629.13,628.55,1.18608911]
[1742960344803,0.679,629.13,628.55,1.18608911]
[1742960345302,0.95571646,629.13,628.55,1.18608911]
[1742960346202,0.95571646,629.13,628.58,1.18608911]
[1742960347905,0.679,629.13,628.58,1.18608911]
[1742960348603,0.679,629.13,628.59,1.18608911]
[1742960351006,0.679,629.13,628.61,1.18608911]
[1742960351907,0.455,629.12,628.61,1.18608911]
[1742960352906,0.455,629.12,628.62,1.18608911]
[1742960355210,0.455,629.12,628.64,1.18608911]
[1742960357310,0.455,629.12,628.56,1.18608911]
[1742960360114,0.455,629.12,628.47,1.18608911]
[1742960362216,0.455,629.12,628.21,0.27672086]
[1742960362217,0.892,629.11,628.4,1.18608911]
[1742960363316,0.27675717,629.1,628.4,1.18608911]
[1742960364912,0.27675717,629.1,628.38,1.18608911]
[1742960365913,0.892,629.11,628.38,1.18608911]
[1742960366317,0.27675937,629.09,628.38,1.18608911]
[1742960367223,0.27675937,629.09,628.32,1.18608911]
[1742960371922,0.892,629.11,628.36,1.18608911]
[1742960372323,0.27675497,629.08,628.36,1.18608911]
[1742960374231,0.27675497,629.08,628.37,0.2705444]
[1742960374936,0.892,629.11,628.37,0.2705444]
[1742960376128,1.16874396,629.11,628.37,0.2705444]
[1742960376933,0.455,629.1,628.44,1.18608911]
[1742960379329,0.455,629.1,628.46,1.18608911]
[1742960379535,0.455,629.1,628.47,0.27056642]
[1742960381533,0.455,629.1,628.53,1.18608911]
[1742960385437,0.793,629.09,628.53,1.18608911]
[1742960385738,0.793,629.09,628.57,1.18608911]
[1742960388132,0.793,629.09,628.59,1.18608911]
[1742960390742,0.793,629.09,628.61,1.18608911]
[1742960392442,0.793,629.09,628.25,0.98198596]
[1742960392443,0.793,629.09,628.62,1.18608911]
[1742960393944,0.793,629.09,628.63,1.18608911]
[1742960399144,0.793,629.09,628.52,1.18608911]
[1742960401250,0.793,629.09,628.5,1.18608911]
[1742960407553,0.27672416,629.14,628.5,1.18608911]
[1742960408056,0.31781344,629.3,628.5,1.18608911]
[1742960408456,0.454,629.29,628.5,1.18608911]
[1742960409058,0.454,629.29,628.62,1.18608911]
[1742960409253,0.27670106,629.28,628.62,1.18608911]
[1742960410458,0.744,629.27,628.62,1.18608911]
[1742960412561,0.744,629.27,628.47,1.18608911]
[1742960413860,0.744,629.27,628.48,1.18608911]
[1742960415275,0.27671316,629.26,628.48,1.18608911]
[1742960418267,0.27671316,629.26,628.5,1.18608911]
[1742960420371,0.27671316,629.26,628.55,1.18608911]
[1742960422968,0.744,629.27,628.57,1.18608911]
[1742960423273,0.27669226,629.25,628.57,1.18608911]
[1742960423666,0.454,629.24,628.57,1.18608911]
[1742960424976,0.454,629.24,628.52,1.18608911]
[1742960427174,0.27669556,629.23,628.55,1.18608911]
[1742960432087,0.27669556,629.23,628.54,1.18608911]
[1742960434078,0.27669556,629.23,628.58,1.18608911]
[1742960437286,0.7,629.22,628.58,1.18608911]
[1742960438987,0.7,629.22,628.56,1.18608911]
[1742960441488,0.7,629.22,628.57,1.18608911]
[1742960442189,0.27669556,629.21,628.57,1.18608911]
[1742960443488,0.27669556,629.21,628.54,1.18608911]
[1742960443889,0.7,629.22,628.54,1.18608911]
[1742960444290,0.27669886,629.21,628.54,1.18608911]
[1742960445594,0.27669886,629.21,628.44,1.18608911]
[1742960446897,0.7,629.22,628.44,1.18608911]
[1742960447495,0.73070986,629.21,628.44,1.18608911]
[1742960447898,0.73070986,629.21,628.46,1.18608911]
[1742960449994,0.454,629.21,628.46,1.18608911]
[1742960451300,0.27670766,629.2,628.46,1.18608911]
[1742960452497,0.27670766,629.2,628.47,0.27059161]
[1742960452899,0.454,629.21,628.47,0.27059161]
[1742960453199,0.27670876,629.19,628.47,0.27059161]
[1742960453701,0.27670876,629.19,628.48,1.18608911]
[1742960454600,1.15870876,629.19,628.48,1.18608911]
[1742960456104,0.882,629.19,628.48,1.18608911]
[1742960456305,0.27670876,629.18,628.48,1.18608911]
[1742960456806,0.27670876,629.18,628.62,1.18608911]
[1742960459007,0.882,629.19,628.59,1.18608911]
[1742960460201,0.27669666,629.18,628.59,1.18608911]
[1742960461003,0.27669666,629.18,628.61,1.18608911]
[1742960462007,0.882,629.19,628.61,1.18608911]
[1742960462206,0.27669446,629.17,628.61,1.18608911]
[1742960463708,0.27669446,629.17,628.56,1.18608911]
[1742960464909,0.882,629.19,628.56,1.18608911]
[1742960465303,0.27672196,629.16,628.56,1.18608911]
[1742960465603,0.27672196,629.16,628.21,1.18608911]
[1742960467804,0.27672196,629.16,628.2,1.18608911]
[1742960468008,0.882,629.19,628.2,1.18608911]
[1742960469210,0.27676157,629.18,628.2,1.18608911]
[1742960470414,0.27676157,629.18,628.25,0.27059584]
[1742960472314,0.27676157,629.18,628.44,1.18608911]
[1742960473914,0.882,629.19,628.44,1.18608911]
[1742960475112,0.882,629.19,628.42,1.18608911]
[1742960475311,0.27673516,629.18,628.42,1.18608911]
[1742960476017,0.454,629.17,628.42,1.18608911]
[1742960478016,0.454,629.17,628.39,1.18608911]
[1742960478213,0.27674616,629.16,628.39,1.18608911]
[1742960478417,0.31788921,629.15,628.39,1.18608911]
[1742960480715,0.31788921,629.15,620.82,9.48344673]
[1742960480716,0.31788921,629.15,628.28,1.18608911]
[1742960481217,0.27679019,629.14,628.28,1.18608911]
[1742960481417,0.31789932,629.13,628.28,1.18608911]
[1742960483218,0.31789932,629.13,628.26,1.18608911]
[1742960484218,0.27678799,629.12,628.26,1.18608911]
[1742960485020,0.652,629.11,628.26,1.18608911]
[1742960485217,0.652,629.11,628.28,1.18608911]
[1742960486316,0.27679239,629.1,628.28,1.18608911]
[1742960487913,0.27679239,629.1,628.27,1.18608911]
[1742960489124,0.652,629.11,628.27,1.18608911]
[1742960489324,0.27678689,629.09,628.27,1.18608911]
[1742960490526,0.27678689,629.09,628.13,1.18608911]
[1742960492024,0.652,629.11,628.13,1.18608911]
[1742960492527,0.652,629.11,628.12,1.18608911]
[1742960493328,0.2768034,629.1,628.12,1.18608911]
[1742960494937,0.652,629.11,628.12,1.18608911]
[1742960496231,0.2768034,629.1,628.12,1.18608911]
[1742960496925,0.2768034,629.1,628.13,0.27065589]
[1742960497533,0.2768034,629.1,628.13,1.456745]
[1742960497830,0.2768034,629.1,628.14,0.27065589]
[1742960498032,0.2768034,629.1,628.13,1.18608911]
[1742960498331,0.2768034,629.1,628.14,0.27065761]
[1742960500031,0.2768034,629.1,628.34,1.18608911]
[1742960501031,0.652,629.11,628.34,1.18608911]
[1742960502232,0.27677038,629.1,628.34,1.18608911]
[1742960503235,0.27677038,629.1,628.36,1.18608911]
[1742960504028,0.652,629.11,628.36,1.18608911]
[1742960505333,0.27676817,629.1,628.36,1.18608911]
[1742960507028,0.652,629.11,628.36,1.18608911]
[1742960507734,0.652,629.11,628.31,1.18608911]
[1742960508329,0.27678028,629.1,628.31,1.18608911]
[1742960508531,0.73078028,629.1,628.31,1.18608911]
[1742960509927,0.73078028,629.1,627.76,1.42330694]
[1742960509928,0.454,629.1,628.23,1.18608911]
[1742960511229,0.27678909,629.09,628.23,1.18608911]
[1742960512236,0.27678909,629.09,628.25,1.18608911]
[1742960512935,0.454,629.1,628.25,1.18608911]
[1742960513334,0.27678468,629.09,628.25,1.18608911]
[1742960515138,0.668,629.08,628.27,1.18608911]
[1742960517342,0.27678799,629.07,628.27,1.18608911]
[1742960518242,0.27678799,629.07,628.28,0.27067334]
[1742960518441,0.27678799,629.07,628.27,1.18608911]
[1742960518642,0.27678799,629.07,628.28,0.2706735]
[1742960518842,0.27678799,629.07,628.28,1.45676261]
[1742960519035,0.668,629.08,628.29,0.2706735]
[1742960519945,0.668,629.08,628.28,1.18608911]
[1742960520142,0.668,629.08,628.29,0.27068009]
[1742960520343,0.27678689,629.07,628.29,0.27068009]
[1742960521237,0.27678689,629.07,628.46,1.18608911]
[1742960524940,0.668,629.08,628.46,1.18608911]
[1742960525344,0.27676707,629.06,628.46,1.18608911]
[1742960525545,0.27676707,629.06,628.42,1.18608911]
[1742960527345,0.27676707,629.06,628.35,1.18608911]
[1742960528053,0.668,629.08,628.35,1.18608911]
[1742960529452,0.27677918,629.07,628.35,1.18608911]
[1742960530752,0.27677918,629.07,628.32,1.18608911]
[1742960530953,0.668,629.08,628.32,1.18608911]
[1742960532154,0.27678248,629.07,628.32,1.18608911]
[1742960534056,0.668,629.08,628.32,1.18608911]
[1742960534557,1.122,629.08,628.32,1.18608911]
[1742960535358,0.27679349,629.07,628.32,1.18608911]
[1742960536259,0.27679349,629.07,628.3,1.18608911]
[1742960536957,1.122,629.08,628.3,1.18608911]
[1742960538360,0.27679569,629.07,628.31,1.18608911]
[1742960540665,0.27679569,629.07,628.33,1.18608911]
[1742960543067,1.122,629.08,628.34,1.18608911]
[1742960543265,0.454,629.08,628.34,1.18608911]
[1742960544267,0.27678579,629.07,628.34,1.18608911]
[1742960545167,0.27678579,629.07,628.36,1.18608911]
[1742960545963,0.454,629.08,628.36,1.18608911]
[1742960546169,0.673,629.07,628.36,1.18608911]
[1742960546570,0.673,629.07,628.39,1.18608911]
[1742960547369,0.27678689,629.06,628.39,1.18608911]
[1742960548064,0.27678689,629.06,628.41,1.18608911]
[1742960548969,0.673,629.07,628.41,1.18608911]
[1742960549269,0.27676267,629.05,628.41,1.18608911]
[1742960550470,0.27676267,629.05,628.09,1.18608911]
[1742960550471,0.27676267,629.05,628.21,1.18608911]
[1742960551973,0.673,629.07,628.21,1.18608911]
[1742960552273,0.27678028,629.04,628.21,1.18608911]
[1742960553074,0.27678028,629.04,628.22,0.2705352]
[1742960553376,0.454,629.03,628.23,0.2705352]
[1742960553673,0.454,629.03,628.24,0.2705352]
[1742960553868,0.454,629.03,628.21,0.2705352]
[1742960554080,0.454,629.03,628.22,0.2705352]
[1742960554274,0.454,629.03,628.23,0.2705357]
[1742960554474,0.454,629.03,628.21,0.2705357]
[1742960554679,0.454,629.03,628.22,0.2705357]
[1742960554877,0.454,629.03,628.23,0.2705357]
[1742960555078,0.454,629.03,628.24,0.2705357]
[1742960555278,0.454,629.03,628.5,1.18608911]
[1742960557374,0.454,629.03,628.48,1.18608911]
[1742960559891,0.454,629.03,628.47,1.18608911]
[1742960562091,0.454,629.03,628.28,1.18608911]
[1742960564491,0.454,629.03,628.29,0.27057056]
[1742960564691,0.454,629.03,628.3,0.27057056]
[1742960564888,0.454,629.03,628.28,0.27057056]
[1742960565190,0.454,629.03,628.29,0.27056742]
[1742960565495,0.454,629.03,628.3,0.27056742]
[1742960565797,0.454,629.03,628.31,0.27056742]
[1742960565994,0.454,629.03,628.32,0.27056742]
[1742960566195,0.454,629.03,628.28,0.27056742]
[1742960566495,0.454,629.03,628.29,0.27056742]
[1742960566687,0.454,629.03,628.3,0.2705113]
[1742960566891,0.454,629.03,628.28,0.2705113]
[1742960567091,0.454,629.03,628.47,1.18608911]
[1742960568996,0.454,629.03,628.48,0.27042315]
[1742960569191,0.454,629.03,628.51,1.18608911]
[1742960572399,0.27674616,629.06,628.51,1.18608911]
[1742960572998,0.31789932,629.13,628.51,1.18608911]
[1742960573401,0.27673186,629.08,628.51,1.18608911]
[1742960574601,0.27673186,629.08,628.55,1.18608911]
[1742960574801,1.36573186,629.08,628.55,1.18608911]
[1742960576003,1.089,629.08,628.55,1.18608911]
[1742960576410,1.36573296,629.08,628.55,1.18608911]
[1742960577402,1.36573296,629.08,628.43,1.18608911]
[1742960579912,1.36573296,629.08,628.42,1.18608911]
[1742960582007,1.089,629.08,628.38,1.18608911]
[1742960583314,1.36575167,629.08,628.38,1.18608911]
[1742960585013,1.089,629.08,628.38,1.18608911]
[1742960585514,1.36575167,629.08,628.38,1.18608911]
[1742960588009,1.089,629.08,628.38,1.18608911]
[1742960588315,1.36575167,629.08,628.38,1.18608911]
[1742960588620,1.36575167,629.08,628.39,0.27027187]
[1742960589417,1.36575167,629.08,628.39,1.45636098]
[1742960589612,1.36575167,629.08,628.4,0.27027187]
[1742960591117,1.089,629.08,628.41,0.27027508]
[1742960591424,1.36575057,629.08,628.42,0.27027508]
[1742960591717,1.36575057,629.08,628.39,1.18608911]
[1742960591917,1.36575057,629.08,628.43,1.18608911]
[1742960594216,1.089,629.08,628.38,1.18608911]
[1742960594418,0.27675277,629.07,628.38,1.18608911]
[1742960596932,0.454,629.08,628.38,1.18608911]
[1742960597124,0.454,629.08,628.39,1.18608911]
[1742960597625,0.27676377,629.07,628.39,1.18608911]
[1742960598317,0.84576377,629.07,628.39,1.18608911]
[1742960598920,0.84576377,629.07,628.36,1.18608911]
[1742960601024,0.84576377,629.07,628.37,1.18608911]
[1742960601819,1.29976377,629.07,628.37,1.18608911]
[1742960602024,1.29976377,629.07,628.38,0.27045476]
[1742960603023,1.023,629.07,628.38,0.27045476]
[1742960603222,1.023,629.07,628.37,1.18608911]
[1742960603423,0.27677808,629.06,628.37,1.18608911]
[1742960603620,0.27677808,629.06,628.09,0.27677808]
[1742960603621,0.27677808,629.06,628.38,1.18608911]
[1742960605625,0.27677808,629.06,628.34,1.18608911]
[1742960606027,1.023,629.07,628.34,1.18608911]
[1742960606426,0.27678138,629.05,628.34,1.18608911]
[1742960609028,1.023,629.07,628.34,1.18608911]
[1742960609423,0.27678138,629.04,628.34,1.18608911]
[1742960613129,0.27678138,629.04,628.09,0.27678138]
[1742960613130,0.27678138,629.04,628.31,1.18608911]
[1742960613332,0.27678138,629.04,628.32,0.27065431]
[1742960614745,0.27678138,629.04,628.31,1.18608911]
[1742960614939,0.31789932,629.13,628.32,0.27066494]
[1742960615441,0.27678468,629.03,628.32,0.27066494]
[1742960615646,0.31789932,629.13,628.31,1.18608911]
[1742960615940,0.31789932,629.13,628.36,1.18608911]
[1742960616538,0.27666366,629.12,628.36,1.18608911]
[1742960617640,0.609,629.11,628.36,1.18608911]
[1742960618345,0.77091448,629.1,628.36,1.18608911]
[1742960618535,0.31791953,629.09,628.36,1.18608911]
[1742960620439,0.31791953,629.09,627.91,1.18608911]
[1742960621144,0.31791953,629.09,627.92,0.27106644]
[1742960621439,0.27688709,629.08,627.92,0.27106644]
[1742960621647,0.31792964,629.07,627.92,0.27106644]
[1742960623139,0.31792964,629.07,627.93,0.27106644]
[1742960623338,0.31792964,629.07,627.94,0.27106644]
[1742960623539,0.31792964,629.07,627.9,0.27106644]
[1742960623841,0.31792964,629.07,627.91,0.27100988]
[1742960624140,0.31792964,629.07,627.92,0.27100988]
[1742960624341,0.31792964,629.07,627.9,0.27100988]
[1742960624539,0.2768915,629.06,627.91,0.27100988]
[1742960624737,0.2768915,629.06,627.86,1.18608911]
[1742960624738,0.31793975,629.05,627.87,0.27100988]
[1742960624932,0.31793975,629.05,627.88,0.27100988]
[1742960625139,0.31793975,629.05,627.89,0.27100988]
[1742960625340,0.31793975,629.05,627.9,0.27100988]
[1742960625540,0.31793975,629.05,627.87,0.27100988]
[1742960625741,0.31793975,629.05,627.88,0.27100988]
[1742960625942,0.31793975,629.05,627.89,0.27100988]
[1742960626134,0.31793975,629.05,627.87,0.27100988]
[1742960626334,0.31793975,629.05,627.88,0.27100988]
[1742960626541,0.31793975,629.05,627.89,0.27100988]
[1742960626737,0.31793975,629.05,627.87,0.27100988]
[1742960627042,0.31793975,629.05,627.86,1.18608911]
[1742960627043,0.31793975,629.05,627.88,0.27100718]
[1742960627244,0.276897,629.04,627.87,0.27100718]
[1742960627541,0.31794985,629.03,627.88,0.27100718]
[1742960627742,0.31794985,629.03,627.89,0.27098823]
[1742960627941,0.31794985,629.03,627.9,0.27098823]
[1742960628142,0.31794985,629.03,627.91,0.27098823]
[1742960628339,0.31794985,629.03,627.81,0.276897]
[1742960628537,0.31794985,629.03,627.82,0.27098799]
[1742960630237,0.31794985,629.03,627.83,0.27098799]
[1742960630546,0.2768915,629.02,627.84,0.27098799]
[1742960630838,0.31795996,629.01,627.85,0.27098799]
[1742960631039,0.31795996,629.01,627.82,0.27098799]
[1742960631239,0.31795996,629.01,627.83,0.27098799]
[1742960631443,0.31795996,629.01,627.84,0.27094296]
[1742960631639,0.31795996,629.01,627.82,0.27094296]
[1742960631845,0.31795996,629.01,627.83,0.27094296]
[1742960632144,0.31795996,629.01,627.84,0.27094296]
[1742960632345,0.31795996,629.01,627.85,0.27094296]
[1742960632544,0.31795996,629.01,627.86,0.27094296]
[1742960632740,0.31795996,629.01,627.82,0.27094296]
[1742960632945,0.31795996,629.01,627.8,1.18608911]
[1742960633143,0.31795996,629.01,627.81,0.27094153]
[1742960633344,0.276897,629.0,627.81,0.54783853]
[1742960633538,0.77197007,628.99,627.82,0.27094153]
[1742960633741,0.31797513,628.98,627.82,0.27094153]
[1742960634342,0.31797513,628.98,627.85,1.18608911]
[1742960634546,0.811,628.97,627.86,0.27094153]
[1742960634846,0.31798524,628.96,627.86,0.27094153]
[1742960637143,0.31798524,628.96,627.85,1.18608911]
[1742960637346,0.31798524,628.96,627.52,1.18608911]
[1742960637347,0.276897,628.95,627.83,1.46298611]
[1742960637538,0.5948873,628.95,627.83,1.46298611]
[1742960639044,0.3179903,628.95,627.83,1.18608911]
[1742960640247,0.27687497,628.94,627.83,1.46296408]
[1742960640643,0.27687497,628.94,627.83,0.27687497]
[1742960642245,0.3179903,628.95,627.57,1.18608911]
[1742960642449,0.27690582,628.93,627.83,0.27690582]
[1742960642849,0.27690582,628.93,627.59,0.31867939]
[1742960643051,0.27690582,628.93,627.6,0.27084446]
[1742960643347,0.27690582,628.93,627.61,0.31866923]
[1742960643548,0.27690582,628.93,627.62,0.27084446]
[1742960643750,0.27690582,628.93,627.68,1.18608911]
[1742960643951,0.27690582,628.93,627.69,0.58947308]
[1742960644151,0.27690582,628.93,627.7,0.589468]
[1742960644353,0.27690582,628.93,627.71,0.58946293]
[1742960644654,0.27690582,628.93,627.72,0.58945785]
[1742960644853,0.27690582,628.93,627.73,0.27084446]
[1742960645153,0.3179903,628.95,627.73,0.27084446]
[1742960646254,0.2768981,628.94,627.73,0.27084446]
[1742960646456,0.2768981,628.94,627.72,0.31861339]
[1742960646656,0.2768981,628.94,627.73,0.2709643]
[1742960647561,0.2768981,628.94,627.74,1.18608911]
[1742960647755,0.59489345,628.94,627.75,0.2709643]
[1742960647953,0.59489345,628.94,627.74,1.18608911]
[1742960648758,0.31800041,628.93,627.74,1.18608911]
[1742960650260,0.31800041,628.93,627.72,0.31861339]